[Event "XIII Mediterranean Championship 2023"]
[Site "Castell-Platja d Aro"]
[Date "2023.11.09"]
[Round "7.31"]
[White "Delbos, Jean-Louis"]
[Black "Garcia Rodriguez, Laia"]
[Result "1/2-1/2"]
[ECO "B13"]
[WhiteElo "1573"]
[BlackElo "1811"]
[Annotator "NA RC"]
[PlyCount "82"]
[EventDate "2023.10.26"]
[EventType "swiss"]
[EventCountry "ESP"]
[SourceTitle "playchess.com"]
[Source "ChessBase"]
[SourceQuality "1"]
[TimeControl "5400+30"]

1. e4 {[%emt 0:00:08]} c6 {[%emt 0:00:14]} 2. d4 {[%emt 0:00:14]} d5 {[%emt 0:00:25]} 3. exd5 {[%emt 0:00:12]} cxd5 {[%emt 0:00:15]} 4. Bd3 {[%emt 0:00:17]} Nc6 {[%emt 0:00:24]} 5. c3 {[%emt 0:00:20]} Nf6 {[%emt 0:00:38]} 6. Bf4 {[%emt 0:00:52]} Bg4 {[%emt 0:01:00]} 7. Qb3 {[%emt 0:01:22]} Qd7 {[%emt 0:00:35]} 8. Nd2 {[%emt 0:01:31]} e6 {[%emt 0:02:03]} 9. Ngf3 {[%emt 0:01:24]} Bd6 {[%emt 0:02:40]} 10. Bxd6 {[%emt 0:03:04]} Qxd6 {[%emt 0:00:12]} 11. O-O {[%emt 0:02:18]} O-O {[%emt 1:27:34]} 12. Rae1 {[%emt 0:02:35]} Bxf3 {[%emt 0:00:30]} 13. Nxf3 {[%emt 0:00:38]} a6 {[%emt 0:00:30]} 14. Ne5 {[%emt 0:01:22]} b5 {[%emt 0:00:00]} 15. a3 {[%emt 0:07:06]} Rfb8 {[%emt 0:00:00]} 16. f4 {[%emt 0:09:16]} a5 {[%emt 0:00:00]} 17. g4 {[%emt 0:05:58]} b4 {[%emt 0:00:00]} 18. g5 {[%emt 0:11:26]} Ne4 {[%emt 0:00:00]} 19. Bxe4 {[%emt 0:10:44]} dxe4 {[%emt 0:00:00]} 20. axb4 {[%emt 0:05:47]} axb4 {[%emt 0:00:00]} 21. Nxc6 {[%emt 0:03:35]} Qxc6 {[%emt 0:00:00]} 22. c4 {[%emt 0:02:44]} Rd8 {[%emt 0:00:00]} 23. Rd1 {[%emt 0:06:02]} Rab8 {[%emt 0:00:00]} 24. f5 {[%emt 0:01:54]} exf5 {[%emt 0:00:00]} 25. Rxf5 {[%emt 0:03:31]} Qe6 {[%emt 0:00:00]} 26. Re5 {[%emt 0:19:10]} Qg4+ {[%emt 0:00:00]} 27. Kh1 {[%emt 0:00:00]} Re8 {[%emt 0:00:00]} 28. Rg1 {[%emt 0:00:00]} Qd7 {[%emt 0:00:00]} 29. Rxe8+ {[%emt 0:00:00]} Rxe8 {[%emt 0:00:00]} 30. Qe3 {[%emt 0:00:00]} Qc6 {[%emt 0:00:00]} 31. b3 {[%emt 0:00:00]} g6 {[%emt 0:00:00]} 32. d5 {[%emt 0:00:00]} Qd6 {[%emt 0:00:00]} 33. Rd1 {[%emt 0:00:00]} Re5 {[%emt 0:00:22]} 34. c5 {[%emt 0:00:00]} Qd8 {[%emt 0:00:28]} 35. d6 {[%emt 0:00:00]} Re6 {[%emt 0:01:15]} 36. c6 {[%emt 0:00:00]} Rxd6 {[%emt 0:00:58]} 37. Rxd6 {[%emt 0:00:00]} Qxd6 {[%emt 0:00:02]} 38. Qxe4 {[%emt 0:00:00]} Qd1+ {[%emt 0:00:42]} 39. Kg2 {[%emt 0:00:00]} Qd2+ {[%emt 0:00:53]} 40. Kh1 {[%emt 0:07:00]} Qxg5 {[%emt 0:08:50]} 41. Qc4 Qc1+ {[%emt 0:00:30]} 1/2-1/2

[Event "XIII Mediterranean Championship 2023"]
[Site "Castell-Platja d Aro"]
[Date "2023.11.09"]
[Round "7.32"]
[White "Teixidor Banus, Josep Maria"]
[Black "Burset Camps, Guillem"]
[Result "1/2-1/2"]
[ECO "B13"]
[WhiteElo "1669"]
[BlackElo "1408"]
[Annotator "NA RC"]
[PlyCount "50"]
[EventDate "2023.10.26"]
[EventType "swiss"]
[EventCountry "ESP"]
[SourceTitle "playchess.com"]
[Source "ChessBase"]
[SourceQuality "1"]
[TimeControl "5400+30"]

1. d4 {[%emt 1:31:00]} e6 {[%emt 0:00:33]} 2. Bf4 {[%emt 0:00:00]} d5 {[%emt 0:00:50]} 3. e3 {[%emt 0:01:00]} c5 {[%emt 1:30:37]} 4. c3 {[%emt 0:00:00]} Nf6 {[%emt 0:00:00]} 5. Nd2 {[%emt 0:01:00]} cxd4 {[%emt 0:01:00]} 6. exd4 {[%emt 0:00:00]} Bd6 {[%emt 0:00:00]} 7. Bxd6 {[%emt 0:00:00]} Qxd6 {[%emt 0:00:00]} 8. Ngf3 {[%emt 0:01:30]} O-O {[%emt 0:01:30]} 9. Bd3 {[%emt 0:00:00]} Nc6 {[%emt 0:00:00]} 10. O-O {[%emt 0:00:00]} a6 {[%emt 0:00:00]} 11. Qe2 {[%emt 0:01:30]} b5 {[%emt 0:00:00]} 12. a3 {[%emt 0:00:00]} Bb7 {[%emt 0:00:00]} 13. Ne5 {[%emt 0:00:00]} Nd7 {[%emt 0:02:30]} 14. f4 {[%emt 0:01:30]} Ndxe5 {[%emt 0:00:00]} 15. fxe5 {[%emt 0:00:00]} Qe7 {[%emt 0:01:00]} 16. Qh5 {[%emt 0:00:00]} g6 {[%emt 0:00:00]} 17. Qh6 {[%emt 0:00:00]} f5 {[%emt 0:00:00]} 18. exf6 {[%emt 0:00:00]} Rxf6 {[%emt 0:00:00]} 19. Rxf6 {[%emt 0:00:00]} Qxf6 {[%emt 0:00:00]} 20. Rf1 {[%emt 0:00:00]} Qg7 {[%emt 0:02:30]} 21. Qxg7+ {[%emt 0:00:00]} Kxg7 {[%emt 0:00:00]} 22. Nf3 {[%emt 0:00:00]} Rf8 {[%emt 0:00:00]} 23. Re1 {[%emt 0:00:00]} Bc8 {[%emt 0:00:00]} 24. Ng5 {[%emt 0:00:00]} Rf6 {[%emt 0:00:00]} 25. Re2 {[%emt 0:05:30]} Na5 {[%emt 0:02:30]} 1/2-1/2

[Event "XIII Mediterranean Championship 2023"]
[Site "Castell-Platja d Aro"]
[Date "2023.11.10"]
[Round "8.1"]
[White "Narciso Dublan, Marc"]
[Black "Iermito, Sebastian"]
[Result "1/2-1/2"]
[ECO "E65"]
[WhiteElo "2401"]
[BlackElo "2521"]
[Annotator "RC"]
[PlyCount "30"]
[EventDate "2023.10.26"]
[EventType "swiss"]
[EventCountry "ESP"]
[SourceTitle "playchess.com"]
[Source "ChessBase"]
[SourceQuality "1"]
[TimeControl "5400+30"]

1. c4 {[%emt 0:00:07]} c5 {[%emt 0:00:05]} 2. g3 {[%emt 0:00:20]} Nc6 {[%emt 0:00:28]} 3. Bg2 {[%emt 0:00:08]} g6 {[%emt 0:00:13]} 4. Nc3 {[%emt 0:00:07]} Bg7 {[%emt 0:00:07]} 5. Nf3 {[%emt 0:00:07]} d6 {[%emt 0:00:06]} 6. O-O {[%emt 0:00:11]} Rb8 {[%emt 0:00:04]} 7. e3 {[%emt 0:02:05]} Nf6 {[%emt 0:00:08]} 8. d4 {[%emt 0:00:34]} O-O {[%emt 0:00:05]} 9. b3 {[%emt 0:02:12]} Be6 {[%emt 0:00:12]} 10. Bb2 {[%emt 0:15:04]} cxd4 {[%emt 0:00:04]} 11. Nxd4 {[%emt 0:00:37]} Nxd4 {[%emt 0:00:05]} 12. Qxd4 {[%emt 0:00:27]} Nd5 {[%emt 0:00:14]} 13. Qd2 {[%emt 0:00:18]} Nxc3 {[%emt 0:00:05]} 14. Bxc3 {[%emt 0:00:03]} Bxc3 {[%emt 0:00:05]} 15. Qxc3 {[%emt 0:00:03]} Qc7 {[%emt 0:00:07]} 1/2-1/2

[Event "XIII Mediterranean Championship 2023"]
[Site "Castell-Platja d Aro"]
[Date "2023.11.10"]
[Round "8.2"]
[White "Gines Esteo, Pedro Antonio"]
[Black "Alexakis, Dimitris"]
[Result "1/2-1/2"]
[ECO "A34"]
[WhiteElo "2490"]
[BlackElo "2458"]
[Annotator "RC"]
[PlyCount "119"]
[EventDate "2023.10.26"]
[EventType "swiss"]
[EventCountry "ESP"]
[SourceTitle "playchess.com"]
[Source "ChessBase"]
[SourceQuality "1"]
[TimeControl "5400+30"]

1. Nf3 {[%emt 0:03:08]} c5 {[%emt 0:07:39]} 2. c4 {[%emt 0:02:04]} Nc6 {[%emt 0:00:07]} 3. Nc3 {[%emt 0:00:47]} Nf6 {[%emt 0:00:12]} 4. e4 {[%emt 0:06:00]} e6 {[%emt 0:01:13]} 5. Be2 {[%emt 0:00:38]} e5 {[%emt 0:14:54]} 6. d3 {[%emt 0:02:03]} g6 {[%emt 0:03:21]} 7. Nd5 {[%emt 0:02:33]} Bg7 {[%emt 0:01:21]} 8. O-O {[%emt 0:01:51]} h6 {[%emt 0:08:59]} 9. a3 {[%emt 0:01:30]} a5 {[%emt 0:01:13]} 10. Qa4 {[%emt 0:02:05]} Ra6 {[%emt 0:03:27]} 11. Be3 {[%emt 0:06:17]} d6 {[%emt 0:01:25]} 12. h3 {[%emt 0:00:08]} O-O {[%emt 0:00:39]} 13. Qc2 {[%emt 0:01:01]} Kh7 {[%emt 0:07:01]} 14. Rfb1 {[%emt 0:01:25]} Bd7 {[%emt 0:07:10]} 15. Bd2 {[%emt 0:01:52]} Qb8 {[%emt 0:05:14]} 16. Qc1 {[%emt 0:04:50]} Nxd5 {[%emt 0:10:15]} 17. exd5 {[%emt 0:01:36]} Ne7 {[%emt 0:06:38]} 18. b4 {[%emt 0:00:47]} axb4 {[%emt 0:00:37]} 19. axb4 {[%emt 0:00:29]} Rxa1 {[%emt 0:00:30]} 20. Rxa1 {[%emt 0:00:02]} b5 {[%emt 0:01:41]} 21. bxc5 {[%emt 0:10:25]} dxc5 {[%emt 0:00:22]} 22. Rb1 {[%emt 0:01:06]} Qc7 {[%emt 0:03:25]} 23. cxb5 {[%emt 0:35:24]} Nxd5 {[%emt 0:00:29]} 24. Qc4 {[%emt 0:03:00]} Qd6 {[%emt 0:04:32]} 25. Qh4 {[%emt 0:01:19]} f6 {[%emt 0:01:53]} 26. Qa4 {[%emt 0:00:14]} Rb8 {[%emt 0:00:54]} 27. Qc4 {[%emt 0:02:55]} Bf8 {[%emt 0:03:01]} 28. Nh2 {[%emt 0:05:07]} Be6 {[%emt 0:02:17]} 29. Qa4 {[%emt 0:00:59]} Nb6 {[%emt 0:03:04]} 30. Qa7+ {[%emt 0:01:49]} Bg7 {[%emt 0:00:36]} 31. Bf3 {[%emt 0:01:22]} f5 {[%emt 0:00:51]} 32. Bc6 {[%emt 0:01:10]} Nc8 {[%emt 0:00:50]} 33. Qa3 {[%emt 0:00:16]} Ne7 {[%emt 0:00:24]} 34. Bf3 {[%emt 0:00:08]} e4 {[%emt 0:00:31]} 35. Be2 {[%emt 0:01:02]} exd3 {[%emt 0:00:15]} 36. Qxd3 {[%emt 0:00:37]} Qxd3 {[%emt 0:00:31]} 37. Bxd3 {[%emt 0:00:01]} Rd8 {[%emt 0:00:07]} 38. Re1 {[%emt 0:00:08]} Bg8 {[%emt 0:01:18]} 39. Rxe7 {[%emt 0:00:10]} Rxd3 {[%emt 0:00:01]} 40. Nf3 {[%emt 0:00:10]} Bd5 {[%emt 0:00:45]} 41. Bf4 {[%emt 0:01:00]} Kg8 {[%emt 0:00:13]} 42. Be5 {[%emt 0:01:01]} Bf8 {[%emt 0:00:32]} 43. Rd7 {[%emt 0:00:37]} c4 {[%emt 0:00:32]} 44. Nh4 {[%emt 0:00:52]} Bf7 {[%emt 0:00:55]} 45. Rc7 {[%emt 0:00:08]} Rd5 {[%emt 0:00:14]} 46. f4 {[%emt 0:00:42]} Rxb5 {[%emt 0:00:17]} 47. Rc8 {[%emt 0:00:01]} Be6 {[%emt 0:01:01]} 48. Rc6 {[%emt 0:00:15]} Kf7 {[%emt 0:00:27]} 49. Rc7+ {[%emt 0:00:48]} Ke8 {[%emt 0:00:14]} 50. Nxg6 {[%emt 0:00:01]} Bc5+ {[%emt 0:00:44]} 51. Kh2 {[%emt 0:00:01]} Bd5 {[%emt 0:00:29]} 52. g4 {[%emt 0:01:20]} Ra5 {[%emt 0:00:31]} 53. gxf5 {[%emt 0:00:55]} Ra2+ {[%emt 0:00:33]} 54. Kg3 {[%emt 0:00:01]} Ra3+ {[%emt 0:00:29]} 55. Kh2 {[%emt 0:01:08]} Bf2 {[%emt 0:00:32]} 56. f6 {[%emt 0:00:20]} Ra7 {[%emt 0:00:26]} 57. Rc8+ {[%emt 0:00:50]} Kd7 {[%emt 0:00:22]} 58. Rb8 {[%emt 0:00:30]} Ra2 {[%emt 0:00:38]} 59. f7 {[%emt 0:00:31]} Bc5+ {[%emt 0:00:34]} 60. Rb2 {[%emt 0:00:26]} 1/2-1/2

[Event "XIII Mediterranean Championship 2023"]
[Site "Castell-Platja d Aro"]
[Date "2023.11.10"]
[Round "8.3"]
[White "Lacasa Diaz, Jose Antonio"]
[Black "Asis Gargatagli, Hipolito"]
[Result "0-1"]
[ECO "B51"]
[WhiteElo "2353"]
[BlackElo "2511"]
[Annotator "RC"]
[PlyCount "58"]
[EventDate "2023.10.26"]
[EventType "swiss"]
[EventCountry "ESP"]
[SourceTitle "playchess.com"]
[Source "ChessBase"]
[SourceQuality "1"]
[TimeControl "5400+30"]

1. e4 {[%emt 0:00:19]} c5 {[%emt 0:00:11]} 2. Nf3 {[%emt 0:00:14]} d6 {[%emt 0:00:06]} 3. Bb5+ {[%emt 0:00:52]} Nd7 {[%emt 0:00:25]} 4. d4 {[%emt 0:00:30]} cxd4 {[%emt 0:00:21]} 5. Qxd4 {[%emt 0:00:11]} a6 {[%emt 0:00:16]} 6. Bxd7+ {[%emt 0:04:17]} Qxd7 {[%emt 0:00:22]} 7. Nc3 {[%emt 0:03:49]} e5 {[%emt 0:00:51]} 8. Qd3 {[%emt 0:00:55]} Qc6 {[%emt 0:00:12]} 9. Bg5 {[%emt 0:14:52]} Be6 {[%emt 0:05:13]} 10. O-O-O {[%emt 0:00:58]} h6 {[%emt 0:00:57]} 11. Bh4 {[%emt 0:01:27]} g5 {[%emt 0:00:27]} 12. Bg3 {[%emt 0:00:16]} h5 {[%emt 0:06:32]} 13. h4 {[%emt 0:07:44]} g4 {[%emt 0:07:40]} 14. Nxe5 {[%emt 0:03:25]} dxe5 {[%emt 0:08:11]} 15. Bxe5 {[%emt 0:00:17]} f6 {[%emt 0:06:55]} 16. Bf4 {[%emt 0:05:12]} Rh7 {[%emt 0:09:33]} 17. Kb1 {[%emt 0:03:05]} Rd7 {[%emt 0:05:25]} 18. Nd5 {[%emt 0:00:22]} Rc8 {[%emt 0:02:48]} 19. b3 {[%emt 0:04:23]} b5 {[%emt 0:05:53]} 20. Rd2 {[%emt 0:04:49]} Bg7 {[%emt 0:16:35]} 21. f3 {[%emt 0:19:59]} Ne7 {[%emt 0:03:03]} 22. Rhd1 {[%emt 0:00:25]} Kf7 {[%emt 0:03:38]} 23. fxg4 {[%emt 0:00:40]} Nxd5 {[%emt 0:03:14]} 24. exd5 {[%emt 0:00:24]} Rxd5 {[%emt 0:00:08]} 25. Qh7 {[%emt 0:00:39]} Rxd2 {[%emt 0:01:22]} 26. Qxh5+ {[%emt 0:01:01]} Kg8 {[%emt 0:00:10]} 27. Rxd2 {[%emt 0:00:22]} Qe4 {[%emt 0:00:30]} 28. Bg3 {[%emt 0:10:14]} Qe3 {[%emt 0:04:34]} 29. Rd3 {[%emt 0:00:15]} Qe2 {[%emt 0:00:30]} 0-1

[Event "XIII Mediterranean Championship 2023"]
[Site "Castell-Platja d Aro"]
[Date "2023.11.10"]
[Round "8.4"]
[White "Rojano Alfonso, Carlos"]
[Black "Garriga Cazorla, Pere"]
[Result "0-1"]
[ECO "A03"]
[WhiteElo "2207"]
[BlackElo "2459"]
[Annotator "RC"]
[PlyCount "44"]
[EventDate "2023.10.26"]
[EventType "swiss"]
[EventCountry "ESP"]
[SourceTitle "playchess.com"]
[Source "ChessBase"]
[SourceQuality "1"]
[TimeControl "5400+30"]

1. f4 {[%emt 0:00:02]} g6 {[%emt 0:01:33]} 2. d3 {[%emt 0:00:07]} d5 {[%emt 0:00:05]} 3. e3 {[%emt 0:00:04]} Bg7 {[%emt 0:00:05]} 4. Nf3 {[%emt 0:00:03]} Nf6 {[%emt 0:00:06]} 5. Be2 {[%emt 0:00:03]} c5 {[%emt 0:00:05]} 6. O-O {[%emt 0:00:04]} Nc6 {[%emt 0:00:04]} 7. Qe1 {[%emt 0:00:05]} O-O {[%emt 0:00:52]} 8. Kh1 {[%emt 0:00:16]} b6 {[%emt 0:00:50]} 9. Qh4 {[%emt 0:01:03]} Ba6 {[%emt 0:00:57]} 10. Rf2 {[%emt 0:02:41]} Qc7 {[%emt 0:19:07]} 11. g4 {[%emt 0:05:11]} c4 {[%emt 0:04:05]} 12. d4 {[%emt 0:07:14]} Ne4 {[%emt 0:01:28]} 13. Rg2 {[%emt 0:03:48]} Nb4 {[%emt 0:04:09]} 14. a3 {[%emt 0:07:36]} Nxc2 {[%emt 0:09:42]} 15. Ra2 {[%emt 0:00:54]} b5 {[%emt 0:00:07]} 16. Bd1 {[%emt 0:09:29]} b4 {[%emt 0:00:32]} 17. Bxc2 {[%emt 0:02:58]} b3 {[%emt 0:00:13]} 18. Ra1 {[%emt 0:00:02]} bxc2 {[%emt 0:00:04]} 19. Rxc2 {[%emt 0:02:21]} c3 {[%emt 0:03:59]} 20. Ne1 {[%emt 0:04:21]} Qc4 {[%emt 0:01:53]} 21. h3 {[%emt 0:03:02]} f6 {[%emt 0:01:38]} 22. Nd2 {[%emt 0:05:18]} cxd2 {[%emt 0:01:34]} 0-1

[Event "XIII Mediterranean Championship 2023"]
[Site "Castell-Platja d Aro"]
[Date "2023.11.10"]
[Round "8.5"]
[White "Ayats Llobera, Gerard"]
[Black "Domene Mulyukov, Alexander"]
[Result "1-0"]
[ECO "B01"]
[WhiteElo "2442"]
[BlackElo "2198"]
[Annotator "RC"]
[PlyCount "73"]
[EventDate "2023.10.26"]
[EventType "swiss"]
[EventCountry "ESP"]
[SourceTitle "playchess.com"]
[Source "ChessBase"]
[SourceQuality "1"]
[TimeControl "5400+30"]

1. e4 {[%emt 1:31:00]} d5 {[%emt 0:10:32]} 2. exd5 {[%emt 0:00:00]} Qxd5 {[%emt 0:00:07]} 3. Nc3 {[%emt 0:00:00]} Qa5 {[%emt 0:00:04]} 4. d4 {[%emt 0:00:00]} Nf6 {[%emt 0:00:09]} 5. Nf3 {[%emt 0:00:00]} Nc6 {[%emt 0:00:11]} 6. h3 {[%emt 0:00:00]} a6 {[%emt 0:02:21]} 7. Bd2 {[%emt 0:00:00]} Qb6 {[%emt 0:01:10]} 8. Na4 {[%emt 0:00:00]} Qa7 {[%emt 0:00:09]} 9. c4 {[%emt 0:00:00]} Nxd4 {[%emt 0:08:44]} 10. Be3 {[%emt 0:00:00]} Nxf3+ {[%emt 0:01:02]} 11. Qxf3 {[%emt 0:00:00]} Qb8 {[%emt 0:00:23]} 12. O-O-O {[%emt 0:00:00]} Bd7 {[%emt 0:07:41]} 13. Nc3 {[%emt 0:00:00]} e6 {[%emt 0:02:52]} 14. Be2 {[%emt 0:00:00]} Bd6 {[%emt 0:06:54]} 15. Bd3 {[%emt 0:00:00]} Bc6 {[%emt 0:07:50]} 16. Ne4 {[%emt 0:00:00]} Nxe4 {[%emt 0:03:14]} 17. Bxe4 {[%emt 0:00:00]} Bxe4 {[%emt 0:26:32]} 18. Qxe4 {[%emt 0:00:00]} O-O {[%emt 0:00:14]} 19. c5 {[%emt 0:00:00]} Be7 {[%emt 0:00:17]} 20. Rd7 {[%emt 0:00:00]} Bf6 {[%emt 0:02:18]} 21. Rhd1 {[%emt 0:00:00]} c6 {[%emt 0:07:49]} 22. g4 {[%emt 0:00:00]} Qc8 {[%emt 0:09:19]} 23. g5 {[%emt 0:00:00]} Rd8 {[%emt 0:00:19]} 24. Qd3 {[%emt 0:00:00]} Be7 {[%emt 0:00:17]} 25. h4 {[%emt 0:00:00]} Rxd7 {[%emt 0:01:56]} 26. Qxd7 {[%emt 0:00:00]} Qf8 {[%emt 0:00:26]} 27. b4 {[%emt 0:00:00]} a5 {[%emt 0:00:17]} 28. Qxb7 {[%emt 0:00:00]} axb4 {[%emt 0:00:48]} 29. Kb2 {[%emt 0:00:00]} Rb8 {[%emt 0:00:33]} 30. Qxc6 {[%emt 0:00:00]} Rc8 {[%emt 0:00:16]} 31. Qb5 {[%emt 0:00:27]} h6 {[%emt 0:00:44]} 32. c6 {[%emt 0:00:37]} hxg5 {[%emt 0:00:18]} 33. hxg5 {[%emt 0:00:01]} Qe8 {[%emt 0:00:34]} 34. Rd7 {[%emt 0:00:01]} Rd8 {[%emt 0:00:38]} 35. Qb7 {[%emt 0:03:39]} Rxd7 {[%emt 0:00:31]} 36. cxd7 {[%emt 0:00:15]} Qf8 {[%emt 0:00:08]} 37. Qc8 {[%emt 0:00:39]} 1-0

[Event "XIII Mediterranean Championship 2023"]
[Site "Castell-Platja d Aro"]
[Date "2023.11.10"]
[Round "8.6"]
[White "Gilevych, Artem"]
[Black "Jimenez Ruano, Adrian"]
[Result "1/2-1/2"]
[ECO "B55"]
[WhiteElo "2416"]
[BlackElo "2281"]
[Annotator "RC"]
[PlyCount "150"]
[EventDate "2023.10.26"]
[EventType "swiss"]
[EventCountry "ESP"]
[SourceTitle "playchess.com"]
[Source "ChessBase"]
[SourceQuality "1"]
[TimeControl "5400+30"]

1. e4 {[%emt 0:00:04]} c5 {[%emt 0:11:16]} 2. Nf3 {[%emt 0:00:07]} d6 {[%emt 0:00:07]} 3. d4 {[%emt 0:00:05]} cxd4 {[%emt 0:00:04]} 4. Nxd4 {[%emt 0:00:05]} Nf6 {[%emt 0:00:10]} 5. f3 {[%emt 0:00:07]} e5 {[%emt 0:00:32]} 6. Nb3 {[%emt 0:00:06]} d5 {[%emt 0:00:11]} 7. Bg5 {[%emt 0:00:21]} d4 {[%emt 0:00:06]} 8. c3 {[%emt 0:00:21]} Nc6 {[%emt 0:00:11]} 9. cxd4 {[%emt 0:00:34]} Bb4+ {[%emt 0:00:18]} 10. Bd2 {[%emt 0:00:07]} Nxe4 {[%emt 0:00:29]} 11. Bxb4 {[%emt 0:00:34]} Qh4+ {[%emt 0:00:08]} 12. g3 {[%emt 0:00:05]} Nxg3 {[%emt 0:00:19]} 13. hxg3 {[%emt 0:00:06]} Qxh1 {[%emt 0:00:02]} 14. Ba3 {[%emt 0:01:29]} Bh3 {[%emt 0:00:06]} 15. N1d2 {[%emt 0:00:12]} O-O-O {[%emt 0:07:52]} 16. Qc2 {[%emt 0:00:09]} Bxf1 {[%emt 0:11:02]} 17. O-O-O {[%emt 0:00:55]} Kb8 {[%emt 0:01:54]} 18. Rxf1 {[%emt 0:02:47]} Qg2 {[%emt 0:00:28]} 19. Qf5 {[%emt 0:20:57]} f6 {[%emt 0:07:23]} 20. Bc5 {[%emt 0:20:53]} Rc8 {[%emt 0:12:00]} 21. Kb1 {[%emt 0:07:13]} Rhd8 {[%emt 0:02:37]} 22. Rc1 {[%emt 0:04:21]} Qxg3 {[%emt 0:05:55]} 23. d5 {[%emt 0:19:57]} Rxd5 {[%emt 0:05:14]} 24. Ne4 {[%emt 0:05:23]} Qg6 {[%emt 0:14:31]} 25. Bd6+ {[%emt 0:00:27]} Rxd6 {[%emt 0:00:36]} 26. Qxg6 {[%emt 0:00:04]} hxg6 {[%emt 0:00:20]} 27. Nxd6 {[%emt 0:00:04]} Rd8 {[%emt 0:02:06]} 28. Ne4 {[%emt 0:00:06]} Rd3 {[%emt 0:03:55]} 29. Rf1 {[%emt 0:04:16]} b6 {[%emt 0:01:12]} 30. Nc3 {[%emt 0:00:52]} g5 {[%emt 0:00:40]} 31. a3 {[%emt 0:00:19]} e4 {[%emt 0:10:25]} 32. fxe4 {[%emt 0:00:28]} g4 {[%emt 0:00:13]} 33. Nc1 {[%emt 0:06:18]} Rh3 {[%emt 0:01:15]} 34. N1e2 {[%emt 0:01:10]} Ne5 {[%emt 0:00:01]} 35. Rg1 {[%emt 0:00:45]} Rf3 {[%emt 0:02:13]} 36. Nd5 {[%emt 0:03:05]} g6 {[%emt 0:00:44]} 37. Nd4 {[%emt 0:00:56]} Rd3 {[%emt 0:00:26]} 38. Ne6 {[%emt 0:01:25]} f5 {[%emt 0:00:38]} 39. Nef4 {[%emt 0:01:22]} Rd2 {[%emt 0:01:04]} 40. Ne7 {[%emt 0:00:56]} fxe4 {[%emt 0:00:55]} 41. Nexg6 {[%emt 0:00:11]} Nc4 {[%emt 0:00:09]} 42. Kc1 {[%emt 0:00:52]} e3 {[%emt 0:01:03]} 43. Rxg4 {[%emt 0:00:26]} Nxb2 {[%emt 0:00:24]} 44. Rg2 {[%emt 0:00:54]} Nd3+ {[%emt 0:00:28]} 45. Kb1 {[%emt 0:00:04]} Rxg2 {[%emt 0:00:18]} 46. Nxg2 {[%emt 0:00:06]} e2 {[%emt 0:00:03]} 47. Kc2 {[%emt 0:00:42]} e1=Q {[%emt 0:00:04]} 48. Nxe1 {[%emt 0:00:03]} Nxe1+ {[%emt 0:00:02]} 49. Kc3 {[%emt 0:00:09]} Nf3 {[%emt 0:00:14]} 50. Nf4 {[%emt 0:00:29]} Kb7 {[%emt 0:00:09]} 51. Nd3 {[%emt 0:00:56]} Ng5 {[%emt 0:00:18]} 52. Kc4 {[%emt 0:00:09]} Ne4 {[%emt 0:00:18]} 53. Ne5 {[%emt 0:00:16]} Nd6+ {[%emt 0:00:12]} 54. Kb3 {[%emt 0:00:11]} Ka6 {[%emt 0:01:29]} 55. Nc6 {[%emt 0:00:12]} Nf7 {[%emt 0:01:15]} 56. Kb4 {[%emt 0:00:21]} Kb7 {[%emt 0:00:11]} 57. Nd4 {[%emt 0:00:09]} Ne5 {[%emt 0:00:22]} 58. Kb3 {[%emt 0:00:53]} a6 {[%emt 0:00:21]} 59. Kc3 {[%emt 0:00:12]} Kc7 {[%emt 0:00:21]} 60. Nc2 {[%emt 0:00:53]} Nc6 {[%emt 0:00:47]} 61. Kc4 {[%emt 0:00:33]} Kd6 {[%emt 0:00:16]} 62. a4 {[%emt 0:01:22]} Na5+ {[%emt 0:00:47]} 63. Kc3 {[%emt 0:00:41]} Nb7 {[%emt 0:00:36]} 64. Ne3 {[%emt 0:00:52]} Kc6 {[%emt 0:01:35]} 65. Nc4 {[%emt 0:00:34]} Nc5 {[%emt 0:00:35]} 66. Kb4 {[%emt 0:01:11]} Nd3+ {[%emt 0:00:43]} 67. Kc3 {[%emt 0:00:05]} Nc5 {[%emt 0:00:01]} 68. Kb4 {[%emt 0:00:01]} Nd7 {[%emt 0:00:32]} 69. Kb3 {[%emt 0:01:10]} Kc5 {[%emt 0:00:33]} 70. Kc3 {[%emt 0:00:19]} Nf6 {[%emt 0:00:44]} 71. Ne5 {[%emt 0:00:13]} Ne4+ {[%emt 0:00:37]} 72. Kb3 {[%emt 0:00:22]} Kd5 {[%emt 0:00:12]} 73. Nc4 {[%emt 0:00:56]} Nc5+ {[%emt 0:00:11]} 74. Kb4 {[%emt 0:00:01]} Nxa4 {[%emt 0:00:12]} 75. Nxb6+ {[%emt 0:00:04]} Nxb6 {[%emt 0:02:20]} 1/2-1/2

[Event "XIII Mediterranean Championship 2023"]
[Site "Castell-Platja d Aro"]
[Date "2023.11.10"]
[Round "8.7"]
[White "Trepat Herranz, Joan"]
[Black "Martin Barcelo, Carles"]
[Result "1/2-1/2"]
[ECO "E60"]
[WhiteElo "2385"]
[BlackElo "2242"]
[Annotator "RC"]
[PlyCount "90"]
[EventDate "2023.10.26"]
[EventType "swiss"]
[EventCountry "ESP"]
[SourceTitle "playchess.com"]
[Source "ChessBase"]
[SourceQuality "1"]
[TimeControl "5400+30"]

1. d4 {[%emt 0:00:22]} Nf6 {[%emt 0:01:34]} 2. c4 {[%emt 0:00:39]} d6 {[%emt 0:09:25]} 3. Nf3 {[%emt 0:03:28]} g6 {[%emt 0:00:07]} 4. g3 {[%emt 0:00:18]} Bf5 {[%emt 0:01:45]} 5. Bg2 {[%emt 0:03:05]} Bg7 {[%emt 0:00:11]} 6. O-O {[%emt 0:05:17]} O-O {[%emt 1:20:28]} 7. Nc3 {[%emt 0:00:12]} Ne4 {[%emt 0:00:00]} 8. Nh4 {[%emt 0:04:59]} Nxc3 {[%emt 0:00:00]} 9. bxc3 {[%emt 0:00:11]} Bc8 {[%emt 0:00:00]} 10. e4 {[%emt 0:12:33]} c5 {[%emt 0:00:00]} 11. Be3 {[%emt 0:11:16]} Nc6 {[%emt 0:00:00]} 12. Qd3 {[%emt 0:08:14]} b6 {[%emt 0:00:00]} 13. Nf3 {[%emt 0:06:43]} e5 {[%emt 0:00:00]} 14. d5 {[%emt 0:02:37]} Nb8 {[%emt 0:00:00]} 15. Nd2 {[%emt 0:01:37]} Nd7 {[%emt 0:00:00]} 16. f4 {[%emt 0:02:07]} exf4 {[%emt 0:00:00]} 17. gxf4 {[%emt 0:00:09]} f5 {[%emt 0:00:00]} 18. exf5 {[%emt 0:01:29]} gxf5 {[%emt 0:00:00]} 19. Nf3 {[%emt 0:01:14]} h6 {[%emt 0:00:00]} 20. Bf2 {[%emt 0:10:51]} Nf6 {[%emt 0:00:00]} 21. Nd2 {[%emt 0:03:37]} Ng4 {[%emt 0:00:00]} 22. Bg3 {[%emt 0:01:50]} Qf6 {[%emt 0:00:00]} 23. Rf3 {[%emt 0:01:37]} Qf7 {[%emt 0:00:00]} 24. h3 {[%emt 0:01:10]} Nf6 {[%emt 0:00:00]} 25. Re1 {[%emt 0:01:08]} Bd7 {[%emt 0:00:00]} 26. Rfe3 {[%emt 0:00:32]} Rae8 {[%emt 0:00:00]} 27. Rxe8 {[%emt 0:03:19]} Rxe8 {[%emt 0:00:00]} 28. Rxe8+ {[%emt 0:00:28]} Qxe8 {[%emt 0:00:00]} 29. Bf2 {[%emt 0:02:15]} Nh5 {[%emt 0:00:00]} 30. Qf3 {[%emt 0:01:47]} Qg6 {[%emt 0:00:00]} 31. Nf1 {[%emt 0:00:28]} Be8 {[%emt 0:00:00]} 32. Ng3 {[%emt 0:00:33]} Nxg3 {[%emt 0:00:00]} 33. Bxg3 {[%emt 0:00:05]} Qf6 {[%emt 0:00:00]} 34. Be1 {[%emt 0:00:06]} Qe7 {[%emt 0:00:00]} 35. Bd2 {[%emt 0:00:44]} Bg6 {[%emt 0:05:01]} 36. Bf1 {[%emt 0:01:15]} Qe8 {[%emt 0:00:49]} 37. Qe2 {[%emt 0:00:34]} Qd7 {[%emt 0:01:47]} 38. Be1 {[%emt 0:00:49]} Bf6 {[%emt 0:02:16]} 39. Qc2 {[%emt 0:01:32]} Qe7 {[%emt 0:01:36]} 40. Qe2 {[%emt 0:01:18]} Qg7 {[%emt 0:01:35]} 41. Kh2 {[%emt 0:00:05]} Qd7 {[%emt 0:00:05]} 42. Qc2 {[%emt 0:02:20]} Qe7 {[%emt 0:01:04]} 43. Qe2 {[%emt 0:01:14]} Qd7 {[%emt 0:00:49]} 44. Qc2 {[%emt 0:00:09]} Qe7 {[%emt 0:00:39]} 45. Qe2 {[%emt 0:00:32]} Qd7 {[%emt 0:01:11]} 1/2-1/2